fUSD/lending_fUSD_20250416
["ID","MTS","AMOUNT","RATE_DAILY","PERIOD"]
[358192397,1744827031879,-445.7,0.00050979,120]
[358192398,1744827031890,-310.76,0.00051046,2]
[358192399,1744827031904,-300.0,0.00051475,120]
[358192400,1744827031914,-177.78,0.00051733,2]
[358192401,1744827031924,-1000.0,0.00052091,120]
[358192402,1744827031933,-406.33,0.00052091,2]
[358192403,1744827031943,-83.31645776,0.00052091,2]
[358192404,1744827031955,-1199.03640389,0.00052091,2]
[358192405,1744827031970,-162.69713835,0.00052091,2]
[358192406,1744827031979,-500.0,0.00052091,2]
[358192407,1744827031989,-656.42,0.00052091,2]
[358192408,1744827031999,-644.41,0.00052091,2]
[358192409,1744827032009,-1538.93603956,0.00052091,120]
[358192410,1744827032026,-461.06396044,0.00052091,120]
[358192411,1744827032035,-164.57,0.00052091,2]
[358192412,1744827032044,-153.0,0.00052118,120]
[358192413,1744827032053,-164.57,0.00052178,2]
[358192414,1744827032062,-164.57,0.00052264,2]
[358192415,1744827032073,-164.57,0.00052351,2]
[358192416,1744827032083,-623.83,0.0005245,120]
[358192417,1744827032094,-150.0,0.00052526,2]
[358192419,1744827032103,-2850.49673221,0.0005275,2]
[358192421,1744827032114,-599.2293888,0.0005275,2]
[358192423,1744827032126,-3018.50046572,0.0005275,2]
[358192424,1744827032142,-361.67787839,0.0005275,2]
[358192425,1744827032156,-355.99999977,0.0005275,2]
[358192428,1744827032167,-14336.65553511,0.0005275,2]
[358192430,1744827032176,-300.0,0.00052845,120]
[358192432,1744827032185,-250.0,0.00053145,120]
[358192434,1744827032196,-310.76,0.0005331,2]
[358192435,1744827032205,-200.0,0.00053539,7]
[358192437,1744827032215,-170.65,0.00053653,2]
[358192439,1744827032224,-575.05,0.00053653,2]
[358192441,1744827032233,-3638.75,0.00053828,2]
[358192443,1744827032243,-1000.0,0.000546,7]
[358192446,1744827032251,-690.5443,0.0005463,2]
[358192449,1744827032261,-1360.1493,0.00054755,2]
[358192452,1744827032271,-2500.0,0.00054755,2]
[358192454,1744827032280,-1773.17220068,0.00054757,15]
[358192456,1744827032289,-150.0,0.00054795,30]
[358192458,1744827032298,-150.0,0.00054826,120]
[358192460,1744827032308,-5772.19567208,0.00054827,15]
[358192473,1744827037738,-1564.86093132,0.00049919,44]
[358192474,1744827037751,-577.13906868,0.00049919,44]
[358192475,1744827037762,-1610.22642347,0.00054827,15]
[358192476,1744827037773,-1921.63453103,0.00054828,26]
[358192477,1744827037786,-502.67995387,0.00054828,26]
[358192478,1744827037797,-45.02004638,0.00054828,15]
[358192479,1744827037819,-1728.15215421,0.00054828,15]
[358192480,1744827037830,-1303.9068,0.00054829,2]
[358192481,1744827037840,-4837.6242,0.00054829,2]
[358192482,1744827037852,-2676.7269,0.00054829,2]
[358192483,1744827037862,-105278.8986,0.00054855,2]
[358192484,1744827037873,-150.0,0.00054857,120]
[358192485,1744827037883,-150.0,0.00054888,120]
[358192486,1744827037893,-7382.42209548,0.00054891,15]
[358192487,1744827037909,-1773.17220059,0.000549,15]
[358192488,1744827037920,-209.37,0.00054907,30]
[358192489,1744827037930,-500.0,0.00054916,120]
[358192490,1744827037943,-1622.9,0.00054916,120]
[358192491,1744827037954,-500.0,0.00054916,120]
[358192492,1744827037965,-943.13,0.00054916,120]
[358192493,1744827037974,-500.0,0.00054916,120]
[358192494,1744827037984,-500.0,0.00054916,120]
[358192495,1744827037993,-513.02564864,0.00054916,120]
[358192496,1744827038003,-49702.9439301,0.00054917,2]
[358192497,1744827038014,-33135.2959534,0.00054918,2]
[358192498,1744827038024,-209.37,0.00054918,30]
[358192499,1744827038034,-150.0,0.00054919,120]
[358192500,1744827038044,-2268.71,0.00054926,2]
[358192501,1744827038055,-500.0,0.00054926,120]
[358192502,1744827038064,-500.0,0.00054926,120]
[358192504,1744827038077,-186.79946702,0.00054926,120]
[358192506,1744827038087,-500.0,0.00054926,120]
[358192507,1744827038098,-500.0,0.00054926,120]
[358192508,1744827038108,-500.0,0.00054926,120]
[358192509,1744827038118,-500.0,0.00054926,120]
[358192510,1744827038129,-500.0,0.00054926,120]
[358192511,1744827038139,-746.39,0.00054926,120]
[358192512,1744827038155,-500.0,0.00054926,120]
[358192513,1744827038164,-500.0,0.00054926,120]
[358192514,1744827038175,-500.0,0.00054926,120]
[358192515,1744827038185,-500.0,0.00054927,120]
[358192516,1744827038195,-973.25,0.00054927,120]
[358192518,1744827038208,-679.62,0.00054927,120]
[358192519,1744827038219,-103763.46241243,0.00054927,7]
[358192520,1744827038236,-37796.95758757,0.00054927,7]
[358192521,1744827038246,-763.98,0.00054927,120]
[358192522,1744827038258,-500.0,0.00054927,120]
[358192523,1744827038268,-500.0,0.00054927,120]
[358192524,1744827038278,-500.0,0.00054927,120]
[358192525,1744827038288,-500.0,0.00054927,120]
[358192526,1744827038299,-1010.39,0.00054927,120]
[358192527,1744827038309,-500.0,0.00054927,118]
[358192528,1744827038319,-500.0,0.00054927,120]
[358192529,1744827038329,-508.14,0.00054927,120]
[358192530,1744827038340,-431.322907,0.00054927,120]
[358192531,1744827038360,-68.677093,0.00054927,120]
[358192532,1744827038370,-500.0,0.00054927,120]
[358192533,1744827038380,-500.0,0.00054927,120]
[358192534,1744827038391,-500.0,0.00054927,120]
[358192535,1744827038411,-500.0,0.00054927,120]
[358192536,1744827038420,-1693.31878091,0.00054927,120]
[358192537,1744827038439,-405.20738123,0.00054927,120]
[358192538,1744827038454,-1153.04383786,0.00054927,120]
[358192539,1744827038465,-1510.77221009,0.00054927,120]
[358192540,1744827038481,-112.12778991,0.00054927,120]
[358192541,1744827038493,-534.58,0.00054927,120]
[358192542,1744827038503,-500.0,0.00054927,120]
[358192543,1744827038514,-943.13,0.00054927,120]
[358192544,1744827038527,-500.0,0.00054927,120]
[358192545,1744827038538,-500.0,0.00054927,120]
[358192546,1744827038548,-500.0,0.00054927,120]
[358192547,1744827038560,-369.06327291,0.00054927,120]
[358192548,1744827038571,-500.0,0.00054928,120]
[358192549,1744827038582,-1820.16,0.00054928,120]
[358192550,1744827038593,-500.0,0.00054928,120]
[358192551,1744827038603,-500.0,0.00054928,120]
[358192552,1744827038615,-500.0,0.00054928,120]
[358192553,1744827038626,-225.57706412,0.00054928,120]
[358192554,1744827038636,-173.63654261,0.00054928,120]
[358192555,1744827038647,-1002.91,0.00054928,120]
[358192556,1744827038665,-500.0,0.00054928,120]
[358192557,1744827038677,-500.0,0.00054928,120]
[358192558,1744827038687,-500.0,0.00054928,120]
[358192559,1744827038854,-307.2689235,0.00054928,120]
[358192560,1744827038867,-436.6010765,0.00054928,120]
[358192561,1744827038877,-500.0,0.00054928,120]
[358192562,1744827038887,-500.0,0.00054928,120]
[358192563,1744827038897,-500.0,0.00054928,120]
[358192564,1744827038914,-58.55655469,0.00054928,120]
[358192565,1744827038926,-518.51344531,0.00054928,120]
[358192566,1744827038936,-500.0,0.00054928,120]
[358192567,1744827038945,-612.54,0.00054928,120]
[358192568,1744827038956,-500.0,0.00054928,120]
[358192569,1744827038966,-500.0,0.00054928,120]
[358192570,1744827038976,-422.93771787,0.00054928,120]
[358192571,1744827038987,-500.0,0.00054928,120]
[358192572,1744827038998,-500.0,0.00054928,120]
[358192573,1744827039009,-500.0,0.00054928,120]
[358192574,1744827039019,-500.0,0.00054928,120]
[358192575,1744827039028,-169.60883738,0.00054928,30]
[358192576,1744827039040,-330.39116262,0.00054928,30]
[358192577,1744827039050,-500.0,0.00054928,120]
[358192578,1744827039061,-500.0,0.00054928,120]
[358192579,1744827039072,-443.70883738,0.00054928,120]
[358192580,1744827039117,-254.898,0.00054755,2]
[358192581,1744827039127,-56.29116262,0.00054928,120]
[358192582,1744827039136,-194.56083758,0.00054928,120]
[358192583,1744827039149,-305.43916242,0.00054928,120]
[358192584,1744827039168,-500.0,0.00054928,120]
[358192585,1744827039179,-500.0,0.00054928,120]
[358192586,1744827039189,-500.0,0.00054928,120]
[358192587,1744827039199,-500.0,0.00054928,120]
[358192588,1744827039209,-500.0,0.00054928,120]
[358192589,1744827039220,-500.0,0.00054928,120]
[358192590,1744827039230,-500.0,0.00054928,120]
[358192591,1744827039240,-500.0,0.00054928,120]
[358192592,1744827039249,-500.0,0.00054928,120]
[358192593,1744827039259,-500.0,0.00054928,120]
[358192594,1744827039270,-500.0,0.00054928,120]
[358192595,1744827039279,-415.52729984,0.00054928,120]
[358192619,1744827043113,-151.0,0.00043564,5]
[358192620,1744827043139,-151.0,0.00043564,5]
[358192621,1744827043174,-217.72514268,0.000499,2]
[358192622,1744827043199,-580.27485732,0.000499,2]
[358192630,1744827043884,-435.3818846,0.000499,2]
[358192631,1744827043894,-167.93201985,0.00054038,30]
[358192632,1744827043939,-32.06798015,0.00054038,30]
[358192633,1744827043949,-500.0,0.00054916,120]
[358192634,1744827043960,-500.0,0.00054916,120]
[358192635,1744827043970,-500.0,0.00054926,120]
[358192636,1744827043980,-500.0,0.00054927,120]
[358192637,1744827043993,-500.0,0.00054927,120]
[358192638,1744827044003,-84.47270016,0.00054928,120]
[358192639,1744827044015,-941.14421545,0.00054928,120]
[358192640,1744827044342,-0.21449189,0.00054928,120]
[358192641,1744827044358,-337.27249606,0.00054928,120]
[358192642,1744827044372,-721.3687966,0.00054928,120]
[358192643,1744827044383,-257.81992406,0.00054928,120]
[358192644,1744827044396,-242.18007594,0.00054928,120]
[358192646,1744827044414,-500.0,0.00054928,120]
[358192647,1744827044425,-500.0,0.00054928,120]
[358192648,1744827044439,-500.0,0.00054928,120]
[358192649,1744827044451,-500.0,0.00054928,120]
[358192650,1744827044461,-500.0,0.00054928,120]
[358192651,1744827044471,-500.0,0.00054928,120]
[358192652,1744827044483,-500.0,0.00054928,120]
[358192653,1744827044494,-500.0,0.00054928,120]
[358192654,1744827044506,-500.0,0.00054928,120]
[358192655,1744827044516,-290.13148172,0.00054928,120]
[358192656,1744827044530,-209.86851828,0.00054928,120]
[358192657,1744827044541,-514.98488608,0.00054928,120]
[358192658,1744827044551,-619.27083389,0.00054928,120]
[358192659,1744827044562,-500.0,0.00054928,120]
[358192660,1744827044572,-500.0,0.00054928,120]
[358192662,1744827044582,-500.0,0.00054928,120]
[358192664,1744827044593,-500.0,0.00054928,120]
[358192667,1744827044604,-9.16477386,0.00054928,120]
[358192671,1744827044616,-490.83522614,0.00054928,120]
[358192673,1744827044626,-500.0,0.00054928,120]
[358192674,1744827044636,-500.0,0.00054928,120]
[358192675,1744827044645,-130.75179977,0.00054928,120]
[358192676,1744827044664,-369.24820023,0.00054928,120]
[358192677,1744827044674,-500.0,0.00054928,120]
[358192678,1744827044683,-30.02614797,0.00054928,120]
[358192679,1744827044695,-469.97385203,0.00054928,120]
[358192680,1744827044704,-550.33,0.00054928,120]
[358192681,1744827044714,-500.0,0.00054928,120]
[358192682,1744827044725,-506.7266673,0.00054928,120]
[358192683,1744827044735,-500.0,0.00054928,120]
[358192684,1744827044745,-500.0,0.00054928,120]
[358192685,1744827044755,-500.0,0.00054928,120]
[358192686,1744827044766,-500.0,0.00054928,120]
[358192687,1744827044777,-150.0,0.00054928,120]
[358192688,1744827044787,-150.0,0.00054928,120]
[358192689,1744827044797,-150.0,0.00054928,120]
[358192690,1744827044806,-275.0,0.00054928,120]
[358192691,1744827044816,-150.15556501,0.00054928,120]
[358192692,1744827044825,-566.54523901,0.00054928,120]
[358192693,1744827044835,-150.0,0.00054928,120]
[358192694,1744827044849,-150.0,0.00054928,120]
[358192695,1744827044862,-150.0,0.00054928,120]
[358192696,1744827044876,-200.0,0.00054928,120]
[358192697,1744827044889,-500.0,0.00054928,120]
[358192698,1744827044900,-150.0,0.00054928,9]
[358192699,1744827044917,-150.0,0.00054928,9]
[358192700,1744827044927,-111.40045623,0.00054928,9]
[358192701,1744827045166,-91.2333108,0.00054928,9]
[358192702,1744827045181,-150.0,0.00054928,120]
[358192703,1744827045194,-239.85661791,0.00054928,120]
[358192704,1744827045207,-348.18291473,0.00054928,120]
[358192705,1744827045222,-151.81708527,0.00054928,120]
[358192706,1744827045235,-141.55493813,0.00054928,120]
[358192707,1744827045252,-358.44506187,0.00054928,120]
[358192708,1744827045263,-500.0,0.00054928,120]
[358192709,1744827045275,-354.79580874,0.00054928,120]
[358192710,1744827045292,-145.20419126,0.00054928,120]
[358192711,1744827045305,-223.09600014,0.00054928,120]
[358192712,1744827045324,-276.90399986,0.00054928,120]
[358192714,1744827045336,-101.20221568,0.00054928,120]
[358192715,1744827045349,-398.79778432,0.00054928,120]
[358192716,1744827045361,-439.17221568,0.00054928,120]
[358192717,1744827045378,-60.82778432,0.00054928,120]
[358192718,1744827045389,-500.0,0.00054928,120]
[358192719,1744827045402,-500.0,0.00054928,120]
[358192720,1744827045419,-500.0,0.00054928,120]
[358192721,1744827045432,-192.37304114,0.00054928,120]
[358192722,1744827045447,-307.62695886,0.00054928,120]
[358192723,1744827045458,-500.0,0.00054928,120]
[358192724,1744827045469,-500.0,0.00054928,120]
[358192725,1744827045486,-500.0,0.00054928,120]
[358192726,1744827045497,-500.0,0.00054928,120]
[358192727,1744827045511,-500.0,0.00054928,120]
[358192728,1744827045525,-500.0,0.00054928,120]
[358192729,1744827045539,-500.0,0.00054928,120]
[358192730,1744827045551,-500.0,0.00054928,120]
[358192731,1744827045562,-500.0,0.00054928,120]
[358192732,1744827045575,-521.41,0.00054928,120]
[358192733,1744827045586,-500.0,0.00054928,120]
[358192734,1744827045598,-500.0,0.00054928,120]
[358192735,1744827045610,-500.0,0.00054928,120]
[358192736,1744827045621,-500.0,0.00054928,120]
[358192737,1744827045633,-500.0,0.00054928,120]
[358192738,1744827045644,-500.0,0.00054928,120]
[358192740,1744827045655,-500.0,0.00054928,120]
[358192741,1744827045676,-500.0,0.00054928,120]
[358192742,1744827045687,-500.0,0.00054928,120]
[358192745,1744827045698,-500.0,0.00054928,120]
[358192748,1744827045711,-500.0,0.00054928,120]
[358192750,1744827045722,-500.0,0.00054928,120]
[358192752,1744827045733,-500.0,0.00054928,120]
[358192754,1744827045745,-500.0,0.00054928,120]
[358192756,1744827045757,-500.0,0.00054928,120]
[358192758,1744827045768,-500.0,0.00054928,120]
[358192760,1744827045780,-518.155593,0.00054928,120]
[358192762,1744827045791,-500.0,0.00054928,120]
[358192765,1744827045802,-500.0,0.00054928,120]
[358192767,1744827045814,-500.0,0.00054928,120]
[358192768,1744827045825,-500.0,0.00054928,120]
[358192769,1744827045836,-500.0,0.00054928,120]
[358192770,1744827045847,-500.0,0.00054928,120]
[358192772,1744827045858,-308.46392066,0.00054928,120]
[358192774,1744827045872,-191.53607934,0.00054928,120]
[358192776,1744827045883,-500.0,0.00054928,120]
[358192778,1744827045894,-500.0,0.00054928,120]
[358192781,1744827045906,-1000.0,0.00054928,120]
[358192783,1744827045923,-500.0,0.00054928,120]
[358192785,1744827045934,-500.0,0.00054928,120]
[358192787,1744827045946,-500.0,0.00054928,120]
[358192789,1744827045958,-500.0,0.00054928,120]
[358192791,1744827045969,-500.0,0.00054928,120]
[358192793,1744827045981,-500.0,0.00054928,30]
[358192795,1744827045993,-500.0,0.00054928,120]
[358192797,1744827046004,-150.0,0.0005495,120]
[358192799,1744827046015,-7382.42209548,0.00054954,15]
[358192801,1744827046028,-11963.77355337,0.00054955,30]
[358192802,1744827046039,-1218.4164,0.00054955,120]
[358192803,1744827046051,-202.1703,0.0005496,2]
[358192804,1744827046062,-1773.17220059,0.00054971,15]
[358192805,1744827046075,-150.0,0.00054981,120]
[358192806,1744827046088,-150.0,0.00055012,120]
[358192807,1744827046099,-7382.42209548,0.00055018,15]
[358192808,1744827046110,-16567.6479767,0.00055034,2]
[358192809,1744827046122,-1773.17220059,0.00055042,15]
[358192810,1744827046134,-500.0,0.00055043,120]
[358192811,1744827046146,-1622.9,0.00055043,120]
[358192812,1744827046163,-500.0,0.00055043,120]
[358192813,1744827046175,-943.13,0.00055043,120]
[358192814,1744827046187,-500.0,0.00055043,120]
[358192815,1744827046198,-500.0,0.00055043,120]
[358192817,1744827046210,-500.0,0.00055043,120]
[358192819,1744827046222,-150.0,0.00055044,120]
[358192821,1744827046234,-99405.8878601,0.00055044,2]
[358192823,1744827046247,-47462.2807907,0.00055044,3]
[358192824,1744827046259,-2268.71,0.00055044,2]
[358192825,1744827046271,-500.0,0.00055044,120]
[358192826,1744827046283,-500.0,0.00055044,120]
[358192827,1744827046295,-500.0,0.00055044,120]
[358192828,1744827046307,-500.0,0.00055044,120]
[358192829,1744827046318,-500.0,0.00055044,120]
[358192830,1744827046329,-500.0,0.00055044,120]
[358192831,1744827046340,-500.0,0.00055044,120]
[358192832,1744827046353,-746.39,0.00055044,120]
[358192833,1744827046364,-205.64961042,0.00055044,120]
[358192834,1744827046375,-500.0,0.00055044,120]
[358192835,1744827046386,-500.0,0.00055044,120]
[358192836,1744827046397,-286.52228218,0.00055044,120]
[358192837,1744827046413,-444.16103678,0.00055045,7]
[358192838,1744827046423,-49702.9439301,0.00055045,2]
[358192839,1744827046437,-66447.1931069,0.00055045,3]
[358192840,1744827046449,-2268.71,0.00055053,2]
[358192841,1744827046461,-500.0,0.00055053,120]
[358192842,1744827046471,-500.0,0.00055053,120]
[358192843,1744827046485,-500.0,0.00055053,120]
[358192844,1744827046497,-500.0,0.00055053,120]
[358192845,1744827046509,-500.0,0.00055053,120]
[358192847,1744827046520,-500.0,0.00055053,120]
[358192848,1744827046533,-500.0,0.00055053,120]
[358192850,1744827046546,-500.0,0.00055053,120]
[358192852,1744827046560,-746.39,0.00055053,120]
[358192854,1744827046571,-1622.9,0.00055053,120]
[358192856,1744827046580,-523.1238147,0.00055053,120]
[358192858,1744827046589,-943.13,0.00055053,120]
[358192859,1744827046598,-151.0,0.00055053,120]
[358192861,1744827046608,-500.0,0.00055053,120]
[358192863,1744827046618,-151.0,0.00055053,120]
[358192866,1744827046628,-500.0,0.00055053,120]
[358192867,1744827046638,-500.0,0.00055053,120]
[358192869,1744827046647,-151.0,0.00055053,120]
[358192871,1744827046663,-500.0,0.00055053,120]
[358192891,1744827046868,-500.0,0.00055053,120]
[358192892,1744827046887,-33135.2959534,0.00055053,2]
[358192893,1744827046898,-28477.3684744,0.00055053,3]
[358192894,1744827046911,-500.0,0.00055054,120]
[358192895,1744827046920,-1820.16,0.00055054,120]
[358192896,1744827046930,-500.0,0.00055054,120]
[358192897,1744827046939,-500.0,0.00055054,120]
[358192898,1744827046950,-500.0,0.00055054,120]
[358192899,1744827046959,-1002.91,0.00055054,120]
[358192900,1744827046969,-500.0,0.00055054,120]
[358192901,1744827046978,-743.87,0.00055054,120]
[358192902,1744827046988,-500.0,0.00055054,120]
[358192903,1744827046998,-500.0,0.00055054,120]
[358192904,1744827047008,-500.0,0.00055054,120]
[358192905,1744827047019,-577.07,0.00055054,120]
[358192906,1744827047029,-500.0,0.00055054,120]
[358192907,1744827047038,-612.54,0.00055054,120]
[358192908,1744827047048,-500.0,0.00055054,120]
[358192909,1744827047057,-500.0,0.00055054,120]
[358192910,1744827047066,-500.0,0.00055054,120]
[358192911,1744827047077,-500.0,0.00055054,120]
[358192912,1744827047087,-500.0,0.00055054,120]
[358192913,1744827047096,-500.0,0.00055054,120]
[358192914,1744827047105,-500.0,0.00055054,30]
[358192915,1744827047115,-500.0,0.00055054,120]
[358192916,1744827047124,-518.40487843,0.00055054,120]
[358192917,1744827047134,-500.0,0.00055054,120]
[358192918,1744827047144,-500.0,0.00055054,120]
[358192919,1744827047153,-500.0,0.00055054,120]
[358192920,1744827047165,-500.0,0.00055054,120]
[358192921,1744827047175,-500.0,0.00055054,120]
[358192922,1744827047184,-500.0,0.00055054,120]
[358192923,1744827047194,-500.0,0.00055054,120]
[358192924,1744827047203,-500.0,0.00055054,120]
[358192925,1744827047213,-500.0,0.00055054,120]
[358192926,1744827047222,-500.0,0.00055054,120]
[358192927,1744827047233,-500.0,0.00055054,120]
[358192928,1744827047243,-500.0,0.00055054,120]
[358192929,1744827047253,-500.0,0.00055054,120]
[358192930,1744827047263,-500.0,0.00055054,120]
[358192931,1744827047272,-500.0,0.00055054,120]
[358192932,1744827047282,-500.0,0.00055054,120]
[358192933,1744827047293,-500.0,0.00055054,120]
[358192934,1744827047303,-643.11970682,0.00055054,120]
[358192935,1744827047312,-500.0,0.00055054,120]
[358192936,1744827047323,-518.27427104,0.00055054,120]
[358192937,1744827047333,-500.0,0.00055054,120]
[358192938,1744827047343,-340.49153415,0.00055054,120]
[358192939,1744827047352,-500.0,0.00055054,120]
[358192940,1744827047362,-500.0,0.00055054,120]
[358192941,1744827047372,-500.0,0.00055054,120]
[358192942,1744827047382,-550.33,0.00055054,120]
[358192943,1744827047392,-500.0,0.00055054,120]
[358192944,1744827047401,-500.0,0.00055054,120]
[358192945,1744827047414,-500.0,0.00055054,120]
[358192946,1744827047423,-500.0,0.00055054,120]
[358192947,1744827047436,-679.62,0.00055054,120]
[358192948,1744827047445,-500.0,0.00055054,120]
[358192949,1744827047455,-141560.42,0.00055054,7]
[358192950,1744827047464,-763.98,0.00055054,120]
[358192951,1744827047475,-500.0,0.00055054,120]
[358192952,1744827047488,-500.0,0.00055054,120]
[358192953,1744827047498,-500.0,0.00055054,120]
[358192954,1744827047507,-500.0,0.00055054,120]
[358192955,1744827047517,-500.0,0.00055054,120]
[358192956,1744827047527,-500.0,0.00055054,120]
[358192957,1744827047537,-500.0,0.00055054,120]
[358192958,1744827047546,-500.0,0.00055054,120]
[358192959,1744827047556,-500.0,0.00055054,120]
[358192960,1744827047567,-500.0,0.00055054,120]
[358192961,1744827047576,-1010.39,0.00055054,120]
[358192962,1744827047587,-500.0,0.00055054,118]
[358192963,1744827047597,-500.0,0.00055054,120]
[358192964,1744827047607,-500.0,0.00055054,120]
[358192965,1744827047618,-500.0,0.00055054,120]
[358192966,1744827047628,-500.0,0.00055054,120]
[358192967,1744827047639,-500.0,0.00055054,120]
[358192968,1744827047650,-508.14,0.00055054,120]
[358192969,1744827047664,-330.06,0.00055054,120]
[358192970,1744827047674,-500.0,0.00055054,120]
[358192971,1744827047684,-500.0,0.00055054,120]
[358192972,1744827047695,-500.0,0.00055054,120]
[358192973,1744827047704,-500.0,0.00055054,120]
[358192974,1744827047715,-521.41,0.00055054,120]
[358192975,1744827047725,-500.0,0.00055054,120]
[358192976,1744827047736,-500.0,0.00055054,120]
[358192977,1744827047746,-500.0,0.00055054,120]
[358192978,1744827047760,-500.0,0.00055054,120]
[358192979,1744827047770,-500.0,0.00055054,120]
[358192980,1744827047780,-500.0,0.00055054,120]
[358192981,1744827047790,-500.0,0.00055054,120]
[358192982,1744827047800,-500.0,0.00055054,120]
[358192983,1744827047810,-500.0,0.00055054,120]
[358192984,1744827047820,-500.0,0.00055054,120]
[358192985,1744827047830,-500.0,0.00055054,120]
[358192986,1744827047840,-500.0,0.00055054,120]
[358192987,1744827047850,-500.0,0.00055054,120]
[358192988,1744827047860,-151.0,0.00055054,120]
[358192989,1744827047870,-575.91,0.00055054,120]
[358192990,1744827047881,-154.87389,0.00055054,120]
[358192991,1744827047891,-500.0,0.00055054,120]
[358192992,1744827047901,-500.0,0.00055054,120]
[358192993,1744827047914,-500.0,0.00055054,120]
[358192994,1744827047925,-151.0,0.00055054,120]
[358192995,1744827047935,-500.0,0.00055054,120]
[358192996,1744827047946,-500.0,0.00055054,120]
[358192997,1744827047956,-151.0,0.00055054,120]
[358192998,1744827047966,-500.0,0.00055054,120]
[358192999,1744827047977,-151.0,0.00055054,120]
[358193000,1744827047987,-500.0,0.00055054,120]
[358193001,1744827047997,-3251.57,0.00055054,120]
[358193002,1744827048009,-500.0,0.00055054,120]
[358193003,1744827048021,-1622.9,0.00055054,120]
[358193004,1744827048031,-1622.9,0.00055054,120]
[358193005,1744827048042,-500.0,0.00055054,120]
[358193006,1744827048053,-619.79,0.00055054,120]
[358193007,1744827048064,-517.16,0.00055054,120]
[358193008,1744827048076,-534.58,0.00055054,120]
[358193009,1744827048087,-500.0,0.00055054,120]
[358193010,1744827048097,-943.13,0.00055054,120]
[358193011,1744827048108,-943.13,0.00055054,120]
[358193012,1744827048119,-151.0,0.00055054,120]
[358193013,1744827048129,-500.0,0.00055054,120]
[358193014,1744827048139,-500.0,0.00055054,120]
[358193015,1744827048149,-151.0,0.00055054,120]
[358193016,1744827048163,-500.0,0.00055054,120]
[358193017,1744827048175,-500.0,0.00055054,120]
[358193018,1744827048185,-500.0,0.00055054,120]
[358193019,1744827048197,-500.0,0.00055054,120]
[358193020,1744827048207,-151.0,0.00055054,120]
[358193021,1744827048218,-500.0,0.00055054,120]
[358193022,1744827048229,-500.0,0.00055054,120]
[358193023,1744827048240,-500.0,0.00055054,120]
[358193024,1744827048250,-500.0,0.00055054,120]
[358193025,1744827048261,-500.0,0.00055054,120]
[358193026,1744827048271,-345.3478851,0.00055054,120]
[358193027,1744827048281,-16567.6479767,0.00055054,2]
[358193028,1744827048293,-9492.45615813,0.00055054,3]
[358193029,1744827048304,-293366.29513466,0.00055055,62]
[358193030,1744827048316,-251.35004606,0.00055055,62]
[358193031,1744827048327,-16567.6479767,0.00055055,2]
[358193032,1744827048337,-18984.9123163,0.00055055,3]
[358193033,1744827048348,-500.0,0.00055055,120]
[358193034,1744827048358,-500.0,0.00055055,120]
[358193035,1744827048369,-500.0,0.00055055,120]
[358193036,1744827048380,-500.0,0.00055055,120]
[358193037,1744827048390,-500.0,0.00055055,120]
[358193038,1744827048400,-566.23616202,0.00055055,120]
[358193039,1744827048418,-500.0,0.00055055,120]